fUSD/lending_fUSD_20240122
["ID","MTS","AMOUNT","RATE_DAILY","PERIOD"]
[312451171,1705887032218,-152.13590897,0.000229,2]
[312451173,1705887032228,-188.60766622,0.000229,2]
[312451175,1705887032238,-252.5257145,0.000229,2]
[312451176,1705887032246,-665.75672746,0.000229,2]
[312451177,1705887032257,-1111.83506848,0.000229,2]
[312451178,1705887032267,-269.0269358,0.000229,2]
[312451179,1705887032277,-1646.49,0.000229,2]
[312451180,1705887032286,-1000.0,0.000229,8]
[312451181,1705887032295,-150.24,0.0002294,2]
[312451182,1705887032307,-479.06,0.00022959,2]
[312451183,1705887032316,-188.32454027,0.0002299,2]
[312451184,1705887032326,-1136.8526006,0.00022998,2]
[312451185,1705887032337,-21795.47029673,0.00022998,2]
[312451186,1705887032346,-151.0122,0.00022998,2]
[312451187,1705887032356,-151.0122,0.00022998,2]
[312451188,1705887032365,-151.0122,0.00022998,2]
[312451189,1705887032374,-461.41534372,0.00022999,2]
[312451190,1705887032384,-300.0,0.00022999,2]
[312451191,1705887032393,-150.0,0.00022999,2]
[312451192,1705887032403,-111132.28183922,0.00023,2]
[312451193,1705887032899,-4856.39331479,0.00023,2]
[312451194,1705887032911,-831.14091427,0.00023,2]
[312451195,1705887032966,-940.82366191,0.00023,2]
[312451196,1705887032977,-259.56543941,0.00023,2]
[312451197,1705887032989,-875.03730539,0.00023,2]
[312451198,1705887033000,-1444.23928066,0.00023,2]
[312451221,1705887037855,-36844.74469071,0.00023,2]
[312451222,1705887037867,-27012.12405636,0.00023,2]
[312451223,1705887037880,-61835.21262859,0.00023,2]
[312451224,1705887037892,-556.75400008,0.00023,2]
[312451225,1705887037903,-318.87174916,0.00023,2]
[312451226,1705887037914,-483.54980674,0.00023,2]
[312451227,1705887037927,-2048.68009471,0.00023,2]
[312451228,1705887038062,-12960.86392711,0.00023,2]
[312451229,1705887038075,-996.11998928,0.00023,2]
[312451230,1705887038092,-273.45107881,0.00023,2]
[312451231,1705887038104,-1609.55802822,0.00023,2]
[312451232,1705887038115,-452.64,0.00023,2]
[312451233,1705887038132,-421.78588728,0.00023,2]
[312451234,1705887038143,-946.39860913,0.00023,2]
[312451238,1705887038187,-903.352006,0.00023,2]
[312451239,1705887038202,-369.37553834,0.00023,2]
[312451240,1705887038214,-761.9585976,0.00023,2]
[312451241,1705887038227,-664.7155546,0.00023,2]
[312451243,1705887038272,-21646.11779499,0.00023,2]
[312451244,1705887038286,-4536.75444911,0.00023,2]
[312451245,1705887038298,-971.933,0.00023,2]
[312451366,1705887040270,-701.66503495,0.00023,2]
[312451367,1705887040280,-250.0,0.00023,2]
[312451368,1705887040990,-6816.90324979,0.00023,2]
[312451369,1705887041003,-700.43927189,0.00023,2]
[312451370,1705887041037,-40511.79482154,0.00023,2]
[312451371,1705887041049,-324.39250047,0.00023,2]
[312451372,1705887041060,-318.10345528,0.00023,2]
[312451373,1705887041081,-4914.2,0.00023,2]
[312451374,1705887041113,-2793.53563891,0.00023,2]
[312451375,1705887041125,-5527.67142318,0.00023,2]
[312451422,1705887042898,-11347.52302857,0.00023,2]
[312451423,1705887042908,-9428.57750346,0.00023,2]
[312451446,1705887043499,-500.91146975,0.00023,2]
[312451449,1705887043516,-11640.05649497,0.00023,2]
[312451451,1705887043528,-78668.66174643,0.00023,2]
[312451453,1705887043540,-92435.04743225,0.00023,2]
[312451456,1705887043553,-87666.01131775,0.00023,2]
[312451458,1705887043566,-36743.58290115,0.00023,2]
[312451460,1705887043578,-26578.11269621,0.00023,2]
[312451465,1705887043610,-5988.39426639,0.00023,2]
[312451467,1705887043623,-9650.39400001,0.00023,2]
[312451469,1705887043635,-252.83573894,0.00023,2]
[312451472,1705887043646,-437.196016,0.00023,2]
[312451474,1705887043658,-491.32057971,0.00023,2]
[312451514,1705887045745,-155.0,0.00022999,2]
[312451515,1705887045754,-436.61324659,0.00023,2]
[312451516,1705887045766,-593.01027,0.00023,2]
[312451517,1705887045896,-1040.65669349,0.00023,2]
[312451518,1705887045907,-2824.50000151,0.00023,2]
[312451519,1705887045961,-488.7086523,0.00023,2]
[312451520,1705887045981,-8960.93581399,0.00023,2]
[312451521,1705887046001,-11897.64657344,0.00023,2]
[312451522,1705887046013,-7475.16,0.00023,2]
[312451523,1705887046024,-2008.51909624,0.00023,2]
[312451524,1705887046044,-18599.80771487,0.00023,2]
[312451525,1705887046145,-342.28121462,0.00023,2]
[312451526,1705887046157,-432.78486184,0.00023,2]
[312451527,1705887046168,-611.525,0.00023,2]
[312451536,1705887046297,-491.62526748,0.00023,2]
[312451539,1705887051551,870.98597818,0.00019439,2]
[312451540,1705887094695,730.54409902,0.00021,2]
[312451541,1705887365099,2698.79635292,0.0001976,2]
[312451542,1705887424632,1150.65,0.00021369,2]
[312451543,1705887460675,305.52,0.0001942,2]
[312451545,1705887486985,172.45,0.00021326,2]
[312451546,1705887592698,2000.0,0.00021272,2]
[312451548,1705887607515,500.0,0.00031,120]
[312451549,1705887667561,500.0,0.000215,2]
[312451550,1705887697592,2168.95997777,0.000215,2]
[312451551,1705887761142,160.0,0.00021215,2]
[312451552,1705887818709,157.19,0.00021439,2]
[312451553,1705887855889,155.15,0.0002146,2]
[312451554,1705887872634,290.24,0.00019338,2]
[312451555,1705887996220,958.87,0.00021159,2]
[312451556,1705888164656,253.17,0.00021163,2]
[312451594,1705888231933,-420.23189447,0.0002151,2]
[312451596,1705888231943,-10533.39495593,0.0002151,2]
[312451598,1705888231952,-1813.37519997,0.00021511,2]
[312451600,1705888231961,-495.03511247,0.00021512,2]
[312451602,1705888231970,-337.90026802,0.00021513,2]
[312451604,1705888231980,-473.62844747,0.00021514,2]
[312451606,1705888231989,-301.52383717,0.00021514,2]
[312451608,1705888231999,-3628.02899635,0.00021515,2]
[312451610,1705888232009,-150.0,0.00021523,2]
[312451611,1705888232018,-284.02379985,0.00021525,2]
[312451612,1705888232027,-150.0,0.00021534,2]
[312451613,1705888232036,-155.15,0.00021553,2]
[312451614,1705888232046,-157.28962954,0.0002157,2]
[312451615,1705888232055,-290.24,0.00021602,2]
[312451616,1705888232065,-155.15,0.00021646,2]
[312451617,1705888232074,-1000.0,0.00021677,2]
[312451618,1705888232084,-57993.74667128,0.00021678,2]
[312451619,1705888232093,-155.15,0.00021739,2]
[312451620,1705888232102,-155.15,0.00021833,2]
[312451621,1705888232111,-251.16277049,0.000219,2]
[312451622,1705888232121,-686.69,0.000219,2]
[312451623,1705888232130,-258.11308544,0.000219,2]
[312451624,1705888232140,-672.43,0.00021909,2]
[312451625,1705888232150,-250.0,0.00021918,2]
[312451626,1705888232160,-159.07,0.00021925,2]
[312451627,1705888232170,-155.15,0.00021926,2]
[312451628,1705888232179,-941.78794294,0.00022,2]
[312451629,1705888232189,-155.15,0.00022019,2]
[312451630,1705888232198,-840.0,0.00022051,2]
[312451631,1705888232207,-668.07675721,0.00022106,2]
[312451632,1705888232217,-192.74311407,0.00022107,2]
[312451633,1705888232226,-315.24416109,0.00022107,2]
[312451634,1705888232235,-169.34313587,0.00022107,2]
[312451635,1705888232245,-283.50126331,0.00022107,2]
[312451636,1705888232254,-1702.93404183,0.00022107,2]
[312451637,1705888232263,-158.82474337,0.00022107,2]
[312451638,1705888232272,-892.83238022,0.00022107,2]
[312451639,1705888232282,-18469.86155442,0.00022107,2]
[312451640,1705888232291,-264.25535239,0.00022107,2]
[312451641,1705888232300,-349.66536738,0.00022107,2]
[312451642,1705888232310,-2240.39371672,0.00022108,2]
[312451643,1705888232319,-2697.11958685,0.00022109,2]
[312451645,1705888232329,-2010.9742304,0.0002211,2]
[312451646,1705888232341,-1186.69011417,0.0002211,2]
[312451647,1705888232352,-269.42731393,0.0002211,2]
[312451648,1705888232381,-17808.32741993,0.0002211,2]
[312451649,1705888232391,-226.72084427,0.00022112,2]
[312451650,1705888232400,-155.15,0.00022112,2]
[312451651,1705888232410,-155.15,0.00022205,2]
[312451652,1705888232419,-157.28962954,0.00022235,2]
[312451653,1705888232429,-628.45234265,0.00022261,2]
[312451654,1705888232438,-155.15,0.00022299,2]
[312451655,1705888232447,-159.07,0.00022337,2]
[312451656,1705888232456,-155.15,0.00022392,2]
[312451657,1705888232466,-155.15,0.00022485,2]
[312451659,1705888232475,-282.06564756,0.00022569,2]
[312451661,1705888232484,-155.87745543,0.00022569,2]
[312451663,1705888232494,-155.15,0.00022578,2]
[312451664,1705888232503,-1000.0,0.000226,2]
[312451665,1705888232512,-180.5,0.00022612,2]
[312451666,1705888232521,-800.0,0.00022658,2]
[312451667,1705888232530,-9199.1816,0.0002267,2]
[312451668,1705888232539,-477.1389,0.0002267,2]
[312451669,1705888232548,-1000.0,0.0002267,2]
[312451670,1705888232558,-428.646,0.0002267,2]
[312451671,1705888232568,-991.7104,0.00022698,2]
[312451672,1705888232577,-5544.4672,0.00022698,2]
[312451673,1705888232587,-31460.4058,0.00022698,2]
[312451674,1705888232596,-2835.22043808,0.00022699,2]
[312451675,1705888232605,-17498.30907693,0.000227,2]
[312451676,1705888232614,-2948.98,0.000227,2]
[312451677,1705888232623,-448.18249817,0.000227,2]
[312451678,1705888232634,-926.218222,0.000227,2]
[312451679,1705888232645,-164.17673472,0.00022736,2]
[312451680,1705888232655,-159.07,0.0002275,2]
[312451681,1705888232667,-76953.0,0.0002277,2]
[312451682,1705888232677,-543.88464598,0.00022796,2]
[312451683,1705888232687,-155.5059296,0.00022796,2]
[312451684,1705888232696,-28894.06279295,0.00022796,2]
[312451685,1705888232707,-305.3714046,0.00022796,2]
[312451686,1705888232717,-4639.35395016,0.00022796,2]
[312451687,1705888232727,-197.64098772,0.00022796,2]
[312451688,1705888232737,-208.63838542,0.00022796,2]
[312451689,1705888232747,-6450.63377573,0.00022797,2]
[312451690,1705888232757,-2969.80112025,0.00022797,2]
[312451691,1705888232767,-2626.30026529,0.00022797,2]
[312451692,1705888232776,-3340.83973008,0.00022798,2]
[312451693,1705888232786,-29063.16845717,0.00022798,2]
[312451694,1705888232795,-304.10598474,0.00022799,2]
[312451695,1705888232805,-100000.0,0.000228,2]
[312451696,1705888232814,-223142.19228788,0.000228,2]
[312451697,1705888232827,-21857.80771212,0.000228,2]
[312451698,1705888232837,-19834.81005028,0.000228,2]
[312451699,1705888232847,-926.218222,0.000228,2]
[312451700,1705888232857,-958.87,0.00022803,2]
[312451701,1705888232866,-359.5963,0.000229,2]
[312451702,1705888232876,-189.54074528,0.000229,2]
[312451703,1705888232888,-157.28962954,0.000229,2]
[312451704,1705888232903,-7277.34846026,0.000229,2]
[312451705,1705888232913,-166.55731634,0.000229,2]
[312451706,1705888232923,-182.95807325,0.000229,2]
[312451707,1705888232934,-926.218222,0.000229,2]
[312451708,1705888232944,-169.23322724,0.000229,2]
[312451709,1705888232953,-3833.91880144,0.000229,2]
[312451710,1705888232963,-322.43914005,0.00022998,4]
[312451711,1705888232973,-151.0122,0.00022998,2]
[312451712,1705888232983,-151.0122,0.00022998,2]
[312451713,1705888232994,-151.0122,0.00022998,2]
[312451714,1705888233003,-151.0122,0.00022998,2]
[312451715,1705888233013,-151.0122,0.00022998,2]
[312451716,1705888233024,-151.0122,0.00022998,2]
[312451717,1705888233035,-769.46016024,0.00022999,2]
[312451718,1705888233045,-2911.80744378,0.00022999,2]
[312451719,1705888233055,-196.86437828,0.00022999,2]
[312451720,1705888233065,-97827.39056732,0.00023,2]
[312451721,1705888233078,-23736.57730222,0.00023,2]
[312451722,1705888233090,-7924.14223101,0.00023,2]
[312451723,1705888233118,-210042.95838488,0.00023,2]
[312451724,1705888233147,-484.10191491,0.00023,2]
[312451725,1705888233172,-1129.24535294,0.00023,2]
[312451726,1705888233183,-653936.49693747,0.00023,2]
[312451727,1705888233232,-907.0,0.00023,2]
[312451737,1705888237959,-5447.86460582,0.00021509,2]
[312451738,1705888237969,-833.75770069,0.000229,2]
[312451739,1705888237979,-28849.61393146,0.00023,2]
[312451740,1705888237991,-41518.07029853,0.00023,2]
[312451741,1705888238069,-255.86974695,0.00023,2]
[312451742,1705888238080,-4178.21223566,0.00023,2]
[312451743,1705888238096,-1130.88909021,0.00023,2]
[312451744,1705888238108,-473.3383626,0.00023,2]
[312451745,1705888238140,-260.91027996,0.00023,2]
[312451746,1705888238285,-4723.37346589,0.00023,2]
[312451818,1705888241190,-1275.89735525,0.00023,2]
[312451819,1705888241201,-1287.98909483,0.00023,2]
[312451820,1705888241255,-623.323,0.00023,2]
[312451821,1705888241266,-26533.14877147,0.00023,2]
[312451838,1705888243022,-496.69164533,0.00022999,2]
[312451839,1705888243032,-1585.09035467,0.00023,2]
[312451840,1705888243192,-2596.26077757,0.00023,2]
[312451841,1705888243251,-80387.71321724,0.00023,2]
[312451842,1705888243260,-2000.0,0.00023,2]
[312451843,1705888243269,-200.0,0.00023,2]
[312451844,1705888243279,-159.07,0.00023162,2]
[312451845,1705888243289,-200.0,0.0002323,2]
[312451846,1705888243298,-180.0,0.00023259,2]
[312451847,1705888243307,-177.28,0.00023389,2]
[312451848,1705888243317,-157.19,0.00023455,2]
[312451849,1705888243326,-159.07,0.00023574,2]
[312451850,1705888243336,-210.0,0.00023676,2]
[312451851,1705888243345,-290.24,0.00023866,2]
[312451852,1705888243355,-160.0,0.00023867,2]
[312451853,1705888243365,-159.07,0.00023987,2]
[312451854,1705888243374,-201.22485393,0.00024,2]
[312451855,1705888243383,-167.0,0.00024297,2]
[312451856,1705888243393,-159.07,0.00024399,2]
[312451857,1705888243402,-958.87,0.00024447,2]
[312451858,1705888243411,-250.0,0.00024658,2]
[312451859,1705888243420,-840.0,0.00024807,2]
[312451860,1705888243429,-159.07,0.00024812,2]
[312451861,1705888243438,-7277.3484602,0.00024844,2]
[312451862,1705888243447,-209.0,0.00024997,2]
[312451863,1705888243460,-202.79351215,0.00025,2]
[312451864,1705888243469,-937.29860756,0.00025,2]
[312451865,1705888243478,-1590.1619873,0.00025,2]
[312451866,1705888243487,-304.69376402,0.00025,2]
[312451867,1705888243496,-167.97373374,0.00025,2]
[312451868,1705888243506,-2769.0,0.000251,2]
[312451869,1705888243516,-23341.0,0.000251,2]
[312451870,1705888243524,-159.07,0.00025224,2]
[312451871,1705888243534,-157.19,0.00025472,2]
[312451872,1705888243543,-159.07,0.00025637,2]
[312451873,1705888243551,-2835.22043805,0.00025782,2]
[312451874,1705888243561,-2542.74,0.00025786,2]
[312451875,1705888243569,-1916.87,0.00025786,2]
[312451876,1705888243579,-19999.99,0.00025786,2]
[312451877,1705888243588,-2806.51,0.00025786,2]
[312451878,1705888243597,-293.0,0.00026043,2]
[312451879,1705888243606,-159.07,0.00026049,2]
[312451880,1705888243615,-958.87,0.0002609,2]
[312451881,1705888243624,-290.24,0.00026129,2]
[312451882,1705888243633,-448.18249816,0.00026407,2]
[312451883,1705888243643,-160.0,0.00026519,2]
[312451884,1705888243653,-1411.82,0.00026575,2]
[312451885,1705888243675,-7277.3484602,0.00026788,2]
[312451886,1705888243687,-150.0,0.00027397,2]
[312451887,1705888243697,-168.89,0.00027397,2]
[312451888,1705888243707,-840.0,0.00027564,2]
[312451889,1705888243717,-958.87,0.00027734,2]
[312451890,1705888243726,-177.28,0.00028352,2]
[312451891,1705888243736,-290.24,0.00028393,2]
[312451892,1705888243746,-220.0,0.00028647,2]
[312451893,1705888243755,-7277.3484602,0.00028732,2]
[312451894,1705888243764,-2835.22043805,0.00028866,4]
[312451895,1705888243774,-1111.0,0.00028932,5]
[312451896,1705888243783,-160.0,0.00029171,2]
[312451897,1705888243793,-958.87,0.00029378,2]
[312451898,1705888243802,-154.29233887,0.0002958,20]
[312451899,1705888243811,-3298.79475817,0.00029999,2]
[312451900,1705888243821,-155.0,0.0003,2]
[312451901,1705888243831,-296.55648098,0.0003,4]
[312451902,1705888243841,-1210.82585585,0.0003,4]
[312451903,1705888243850,-312.52131406,0.0003,2]
[312451904,1705888243860,-291.66666,0.0003,2]
[312451905,1705888243870,-291.66667,0.0003,2]
[312451906,1705888243879,-291.66667,0.0003,2]
[312451907,1705888243888,-291.66667,0.0003,2]
[312451908,1705888243898,-291.66667,0.0003,2]
[312451909,1705888243908,-291.66666,0.0003,2]
[312451910,1705888243917,-448.18249816,0.00030113,2]
[312451911,1705888243927,-840.0,0.0003032,2]
[312451912,1705888243936,-57674.0,0.00030575,4]
[312451913,1705888243946,-290.24,0.00030657,2]
[312451914,1705888243956,-7277.3484602,0.00030676,2]
[312451915,1705888243965,-209.0,0.00030831,11]
[312451916,1705888243975,-7085.18370799,0.00031,7]
[312451917,1705888243984,-1000.0,0.00031381,2]
[312451918,1705888243993,-165.4,0.00031507,2]
[312451919,1705888244003,-5274.29434932,0.000318,2]
[312451920,1705888244013,-160.0,0.00031823,2]
[312451921,1705888244022,-2835.22043805,0.00031949,5]
[312451922,1705888244031,-261.63948844,0.00032,4]
[312451923,1705888244041,-968.39575226,0.00032,2]
[312451924,1705888244051,-2424.0,0.00032172,2]
[312451925,1705888244060,-1359.0,0.00032172,2]
[312451926,1705888244069,-386.0,0.00032172,2]
[312451927,1705888244078,-450.0,0.00032172,2]
[312451928,1705888244088,-319.399,0.00032172,2]
[312451929,1705888244097,-836.0,0.00032172,2]
[312451930,1705888244107,-1864.291,0.00032172,2]
[312451931,1705888244116,-1092.37,0.00032172,2]
[312451932,1705888244126,-1260.105,0.00032172,2]
[312451933,1705888244135,-528.0,0.00032172,2]
[312451934,1705888244145,-215.0,0.00032172,2]
[312451935,1705888244155,-703.0,0.00032172,2]
[312451936,1705888244164,-1233.0,0.00032172,2]
[312451937,1705888244173,-998.0,0.00032172,2]
[312451938,1705888244182,-427.309,0.00032172,2]
[312451939,1705888244191,-594.0,0.00032172,2]
[312451940,1705888244201,-1935.0,0.00032172,2]
[312451941,1705888244210,-239.756,0.00032172,2]
[312451942,1705888244220,-1139.0,0.00032172,2]
[312451943,1705888244229,-324.388,0.00032172,2]
[312451944,1705888244238,-510.093,0.00032172,2]
[312451945,1705888244247,-905.484,0.00032172,2]
[312451946,1705888244256,-2293.145,0.00032172,2]
[312451947,1705888244265,-8105.0,0.00032172,2]
[312451948,1705888244275,-2908.0,0.00032172,2]
[312451949,1705888244284,-19743.393,0.00032172,2]
[312451950,1705888244294,-4209.342,0.00032172,2]
[312451951,1705888244303,-7361.0,0.00032172,2]
[312451952,1705888244312,-1036.524,0.00032172,2]
[312451953,1705888244322,-173.682,0.00032172,2]
[312451954,1705888244330,-150.235,0.00032172,2]
[312451955,1705888244340,-150.099,0.00032172,2]
[312451956,1705888244350,-150.219,0.00032172,2]
[312451957,1705888244359,-290.566,0.00032172,2]
[312451958,1705888244369,-250.0,0.00032172,2]
[312451959,1705888244378,-155.61322966,0.000325,2]
[312451960,1705888244388,-7277.3484602,0.0003262,4]
[312451961,1705888244398,-388.48,0.00032877,15]
[312451962,1705888244407,-290.24,0.00032921,2]
[312451963,1705888244417,-706.19691735,0.00033,8]
[312451964,1705888244426,-198.9054,0.00033,4]
[312451965,1705888244436,-170.0,0.00033,2]
[312451966,1705888244445,-182.95807325,0.00033044,2]
[312451967,1705888244455,-169.23322722,0.00033044,2]
[312451968,1705888244464,-3833.91880142,0.00033044,2]
[312451969,1705888244473,-833.75770069,0.00033044,2]
[312451970,1705888244483,-840.0,0.00033077,2]
[312451971,1705888244492,-448.18249816,0.0003382,2]
[312451972,1705888244502,-500.0,0.00034,2]
[312451973,1705888244513,-654.1857392,0.00034,4]
[312451980,1705888246003,-204.52799996,0.00022999,2]
[312451981,1705888246013,-155.54870686,0.00022999,2]
[312451982,1705888246022,-3298.79475817,0.00022999,2]
[312451983,1705888246032,-345.8142608,0.00034,4]
[312451984,1705888246041,-12.29719572,0.00034,9]
[312451985,1705888246068,-487.70280428,0.00034,9]
[312451986,1705888246078,-2938.30643068,0.000342,14]
[312451987,1705888246088,-157.30153572,0.000342,4]
[312451988,1705888246097,-257.14,0.000342,7]
[312451989,1705888246106,-251.45572562,0.000342,2]
[312451990,1705888246115,-257.14,0.00034337,7]
[312451991,1705888246125,-308.42765803,0.00034474,7]
[312451992,1705888246134,-7277.3484602,0.00034563,7]
[312451993,1705888246143,-151.0122,0.00034948,4]
[312451994,1705888246153,-363.65551534,0.00034998,2]
[312451995,1705888246196,-690.0,0.00034998,2]
[312451996,1705888246207,-1166.26662366,0.00034998,2]
[312451997,1705888246216,-121.90861252,0.00035,2]
[312451998,1705888246276,-524.2693595,0.00035,2]
[312451999,1705888246291,-532.82209812,0.00035,2]
[312452000,1705888246318,-251.29848083,0.00035,2]
[312452055,1705888895479,244.12,0.00021144,2]
[312452056,1705889334353,258.25,0.00019981,2]
[312452059,1705889402710,243.92994177,0.00019981,2]
[312452060,1705889404421,222.0,0.00020997,2]
[312452061,1705889408972,272.15424822,0.00019981,2]
[312452062,1705889412975,2754.4061297,0.00019981,2]
[312452063,1705889415022,307.07467637,0.00019981,2]
[312452064,1705889418671,206.03246222,0.00019981,2]
[312452065,1705889429115,1653.26182296,0.00019981,2]
[312452092,1705889432107,-252.30515313,0.00019981,2]
[312452094,1705889432117,-2614.74525886,0.00019981,2]
[312452096,1705889432230,-1435.39055778,0.00019981,2]
[312452097,1705889432239,-11724.38328131,0.00019981,2]
[312452098,1705889432249,-754.46579769,0.000219,2]
[312452099,1705889432259,-250.0,0.00021918,2]
[312452100,1705889432268,-738.01497767,0.00022,2]
[312452101,1705889432278,-176.43,0.00022,2]
[312452102,1705889432287,-164.57,0.00022145,2]
[312452103,1705889432296,-258.25,0.00022245,2]
[312452104,1705889432306,-200.0,0.00022308,2]
[312452105,1705889432315,-1000.0,0.00022339,2]
[312452106,1705889432324,-300.0,0.00022374,2]
[312452107,1705889432333,-23890.0,0.00022375,2]
[312452108,1705889432342,-370.35,0.00022414,2]
[312452109,1705889432352,-2000.0,0.00022436,2]
[312452110,1705889432361,-150.0,0.00022488,2]
[312452111,1705889432371,-499.99,0.00022488,2]
[312452112,1705889432380,-151.19743446,0.00022498,2]
[312452113,1705889432390,-2311.9765,0.00022498,2]
[312452114,1705889432399,-14483.16874161,0.00022498,2]
[312452116,1705889432412,-1383.76415839,0.00022498,2]
[312452118,1705889432423,-141.47511383,0.00022498,2]
[312452153,1705889438218,-1002.78488617,0.00022498,2]
[312452154,1705889438227,-362.61066741,0.000225,2]
[312452155,1705889438237,-2784.20444642,0.000225,2]
[312452156,1705889438260,-17180.17149687,0.000225,2]
[312452157,1705889438269,-180.30662054,0.00022548,2]
[312452158,1705889438279,-47.85111316,0.00022598,2]
[312452159,1705889438298,-365.77679856,0.00022598,2]
[312452406,1705889442318,-221.66294576,0.00019981,2]
[312452407,1705889442327,-1239.27772193,0.00022598,2]
[312452409,1705889442339,-312.52609998,0.00022598,2]
[312452419,1705889443260,-19385.22036637,0.00022598,2]
[312452420,1705889443270,-49260.06742862,0.00022598,2]
[312452421,1705889443316,-5491.37624773,0.00022598,2]
[312452422,1705889443335,-6119.44966833,0.00022598,2]
[312452423,1705889443357,-983.22164338,0.00022598,2]
[312452424,1705889443369,-6319.6500043,0.00022598,2]
[312452425,1705889443636,-3465.6910534,0.00022598,2]
[312452426,1705889443659,-465.15169898,0.00022598,2]
[312452427,1705889443671,-1024.93389214,0.00022598,2]
[312452428,1705889443709,-277.19799998,0.00022598,2]
[312452429,1705889443720,-10080.72922718,0.00022598,2]
[312452430,1705889443736,-2290.02318093,0.00022598,2]
[312452431,1705889443747,-1402.21288074,0.00022598,2]
[312452432,1705889443758,-10515.92849999,0.00022598,2]
[312452433,1705889443769,-18032.75370166,0.00022598,2]
[312452434,1705889443789,-1183.18357264,0.00022598,2]
[312452436,1705889443798,-264.90908989,0.000227,2]
[312452465,1705889447162,-512.67,0.00019981,2]
[312452466,1705889447289,-1381.6624045,0.00019981,2]
[312452467,1705889447299,-4427.10547497,0.000227,2]
[312452468,1705890057278,2881.0,0.00031,120]
[312452469,1705890124135,218.0,0.00018997,2]
[312452470,1705890125314,166.93,0.00017135,2]
[312452471,1705890194731,155.0,0.00017135,2]
[312452472,1705890208767,156.93377464,0.00017135,2]
[312452473,1705890227117,331.0,0.00019414,2]
[312452474,1705890603161,150.0,0.00019414,2]
[312452475,1705890603607,150.0,0.00019414,2]
[312452476,1705890603816,297.67358767,0.00019414,2]
[312452478,1705890632340,-150.0,0.00020975,2]
[312452479,1705890632348,-205.84054916,0.00020976,2]
[312452480,1705890632359,-307.51494231,0.00020976,2]
[312452481,1705890632371,-2200.0,0.00020976,2]
[312452482,1705890632382,-300.0,0.00020976,2]
[312452483,1705890632396,-14623.70179347,0.00020976,2]
[312452484,1705890632412,-2618.90434994,0.00020976,2]
[312452485,1705890632423,-1026.8579553,0.00020976,2]
[312452486,1705890632435,-518.79841674,0.00020976,2]
[312452487,1705890632461,-483.49932256,0.00020976,2]
[312452488,1705890632473,-1426.73096217,0.00020976,2]
[312452489,1705890632484,-168.15170835,0.00020976,2]
[312452490,1705890632494,-536.04901528,0.00021,2]
[312452491,1705890632503,-200.0,0.00021056,2]
[312452492,1705890632512,-2842.89043301,0.00021104,2]
[312452493,1705890632523,-456.31690773,0.00021104,2]
[312452494,1705890632543,-824.39424931,0.00021104,2]
[312452499,1705890632804,-542.18999,0.00021104,2]
[312452500,1705890632816,-903.91185002,0.00021104,2]
[312452501,1705890632828,-546.54532813,0.00021104,2]
[312452502,1705890632839,-750.18161684,0.00021104,2]
[312452503,1705890632851,-1658.6,0.00021104,2]
[312452504,1705890632862,-905.525,0.00021104,2]
[312452505,1705890632877,-8052.39830486,0.00021104,2]
[312452506,1705890632888,-4448.13567168,0.00021104,2]
[312452507,1705890632899,-1038.37070633,0.00021104,2]
[312452508,1705890632948,-551.95024485,0.00021104,2]
[312452509,1705890632967,-4482.96214092,0.00021104,2]
[312452510,1705890632986,-3158.31755632,0.00021104,2]
[312452511,1705890632995,-622.65,0.00021104,2]
[312452512,1705890633004,-198.93,0.00021129,2]
[312452513,1705890633013,-150.0,0.00021144,2]
[312452514,1705890633027,-243.17,0.00021154,2]
[312452515,1705890633036,-154.56361534,0.0002125,2]